Cogmind - Beta 11 @@@ ROGUE MODE // 2022.04.08 @ 01:17:42 Player: RNGesus Result: Destroyed by G-47 Trooper with Particle Gun Performance ------------- Evolutions (2) 1000 Regions Visited (6) 1200 Robots Destroyed (122) 610 Value Destroyed (3584) 3584 Prototype IDs (12) 240 Alien Tech Used (0) 0 Bonus (304) 304 TOTAL SCORE: 6938 Bonus ------- High Alert Combat Kills 110 Follower Combat Kills 206 Friendly Fire -12 Cogmind --------- Core Integrity 0/550 Matter 249/300 Energy 290/290 System Corruption 0% Temperature Warm (123) Movement Treading (243) Ox1 Location -8/Storage Parts ------- > --- POWER (1) -------- Improved Deuterium Engine > --- PROPULSION (4) --- Light Treads Light Treads Armored Treads > --- UTILITY (4) ------ Huge Storage Unit Advanced Targeting Computer Hardened Medium Armor Plating Hardlight Generator > --- WEAPON (2) ------- Enhanced Autogun Enhanced Autogun > --- INVENTORY (25) --- Light Nuclear Core Advanced Heat Sink Improved Cooling System Structural Scanner Machine Analyzer Advanced Visual Processing Unit Experimental Sensor Array Seismic Detector Advanced Targeting Computer Hardened Medium Armor Plating Hardened Medium Armor Plating Graphene Brace Hardlight Generator Thief Drone Bay (3/3) Precision Beam Rifle Advanced Beam Rifle Enhanced Autogun Enhanced Autogun Bore Cannon Shock Bomb Launcher Advanced EMP Blaster Improved Grenade Launcher Plasma Cutter Great Maul Peak State ------------ > --- POWER ------------ Improved Deuterium Engine > --- PROPULSION ------- Light Treads Light Treads Light Treads Armored Treads > --- UTILITY ---------- Improved Cooling System Huge Storage Unit Advanced Targeting Computer Improved Light Armor Plating > --- WEAPON ----------- Enhanced Autogun Enhanced Autogun > --- INVENTORY -------- Light Nuclear Core Improved Cooling System Structural Scanner Machine Analyzer Advanced Visual Processing Unit Experimental Sensor Array Seismic Detector Advanced Targeting Computer Hardened Medium Armor Plating Hardened Medium Armor Plating Hardened Medium Armor Plating Graphene Brace Hardlight Generator Hardlight Generator Thief Drone Bay Precision Beam Rifle Advanced Beam Rifle Enhanced Autogun Enhanced Autogun Bore Cannon Shock Bomb Launcher Advanced EMP Blaster Improved Grenade Launcher Plasma Cutter Great Maul [Rating: 38] Favorites ----------- Power Light Nuclear Core Engine Ion Engine Power Core Light Nuclear Core Propulsion Light Treads Treads Light Treads Wheel Compact Wheel Utility Advanced Targeting Computer Device Improved Cooling System Storage Huge Storage Unit Processor Advanced Targeting Computer Protection Light Armor Plating Weapon Improved Assault Rifle Energy Gun Heavy Particle Gun Ballistic Gun Improved Assault Rifle Launcher Mini Grenade Launcher Impact Weapon Great Maul Build | -11 -10 -10 -9 -9 -8 -8 ------- Run | Scr Mat Min Mat Min Mat Sto Slots Evolved 4 | . . . 2 . 2 . Power . | . . . . . . . Propulsion 2 | . . . 1 . 1 . Utility 2 | . . . 1 . 1 . Weapon . | . . . . . . . Parts Attached 89 | 7 7 . 30 1 35 9 Power 9 | 1 1 . 3 . 4 . Engine 6 | 1 1 . 2 . 2 . Core 3 | . . . 1 . 2 . Reactor . | . . . . . . . Propulsion 26 | 2 3 . 12 1 8 . Treads 23 | 2 2 . 11 . 8 . Leg . | . . . . . . . Wheel 3 | . 1 . 1 1 . . Hover . | . . . . . . . Flight . | . . . . . . . Utility 21 | 1 2 . 6 . 10 2 Device 7 | . . . . . 6 1 Storage 4 | 1 2 . 1 . . . Processor 2 | . . . 2 . . . Hackware . | . . . . . . . Protection 8 | . . . 3 . 4 1 Artifact . | . . . . . . . Weapon 33 | 3 1 . 9 . 13 7 Energy Gun 8 | 1 . . . . 6 1 Energy Cannon . | . . . . . . . Ballistic Gun 18 | 2 1 . 7 . 4 4 Ballistic Cannon . | . . . . . . . Launcher 5 | . . . 2 . 2 1 Special Weapon . | . . . . . . . Impact Weapon 2 | . . . . . 1 1 Slashing Weapon . | . . . . . . . Piercing Weapon . | . . . . . . . Special Melee Weapon . | . . . . . . . Unidentified Prototypes 9 | . . . 1 . 6 2 Parts Lost 26 | . 2 . 6 . 15 3 Power 4 | . . . 2 . 2 . Propulsion 9 | . 1 . 1 . 6 1 Utility 7 | . . . 1 . 4 2 Weapon 6 | . 1 . 2 . 3 . Highest Loss Streak 7 | . 1 . 3 . 7 1 To Critical Strikes . | . . . . . . . Average Slot Usage (%) 94 | . 84 85 97 100 95 99 Engine 7 | . 14 14 7 . 4 9 Core 3 | . . . 3 11 4 . Treads 28 | . 26 28 27 22 31 35 Wheel 4 | . 1 . 5 11 3 . Device 2 | . . . . . 6 8 Storage 10 | . 14 14 11 11 9 9 Processor 7 | . . . 11 11 9 9 Protection 7 | . . . 10 11 8 9 Energy Gun 2 | . . . . . 8 1 Ballistic Gun 18 | . 28 28 20 22 8 15 Naked Turns . | . . . . . . . Heaviest Build 109 | 11 39 29 94 94 107 109 Greatest Support 92 | 40 40 40 69 16 92 80 Greatest Overweight (x) 6 | . . . 1 5 6 1 Average Overweight (x) 1 | . . . . 5 3 1 Largest Inventory Capacity 25 | 8 15 15 25 25 25 25 Average Capacity 19 | 6 9 15 16 25 25 25 Most Carried 25 | 3 10 13 16 19 25 25 Average Carried 16 | 1 5 11 14 17 23 24 Final Capacity 25 | 8 15 15 25 25 25 25 Final Carried 25 | 3 10 13 16 19 25 24 Class Distribution -------------------- 76% | Mutant 23% | Scavenger-Mutant Dominant Class ---------------- Mutant | -10/Materials Mutant | -10/Mines Mutant | -9/Materials Mutant | -9/Mines Mutant | -8/Materials Scavenger-Mutant | -8/Storage Resources | -11 -10 -10 -9 -9 -8 -8 ----------- Run | Scr Mat Min Mat Min Mat Sto Matter Collected 2741 | 274 278 122 959 94 617 397 Remotely . | . . . . . . . Salvage Created 4810 | 42 531 165 1392 245 1749 686 Parts 309 | 5 25 18 112 20 90 39 Haulers Intercepted 10 | . 2 . 4 . 4 . Recyclers Shooed 5 | . . . 5 . . . Parts Field Recycled . | . . . . . . . Retrieved Matter . | . . . . . . . Parts Self-Destructed . | . . . . . . . Prevented . | . . . . . . . Kills | -11 -10 -10 -9 -9 -8 -8 ------- Run | Scr Mat Min Mat Min Mat Sto Combat Hostiles Destroyed 92 | . 10 8 26 10 26 12 Guns 85 | . 10 8 19 10 26 12 AOE 7 | . . . 7 . . . Classes Destroyed 15 | 1 2 1 9 . 2 . Worker 5 | . . . 4 . 1 . Builder 2 | . . . 1 . 1 . Tunneler 2 | 2 . . . . . . Hauler 10 | . 2 . 4 . 4 . Recycler 5 | . . . 2 . 2 1 Mechanic 1 | . . . 1 . . . Operator 3 | . . . 1 . 1 1 Watcher 2 | . . . 2 . . . Swarmer 20 | . . 6 7 7 . . Grunt 45 | . 10 2 7 3 13 10 Brawler 3 | . . . 2 . 1 . Duelist 3 | . . . 1 . 2 . Sentry 18 | . . . 9 . 7 2 Specialist 2 | . . . . . 2 . Heavy 1 | . . . . . 1 . Best Kill Streak 6 | 2 4 3 5 3 5 6 Combat Bots Only 5 | . 3 3 4 3 5 5 Max Kills in Single Turn 4 | 1 1 1 4 1 1 1 Gunslinging . | . . . . . . . Exploded 4 | . . . 4 . . . Melee . | . . . . . . . Uniques/NPCs Destroyed . | . . . . . . . Combat | -11 -10 -10 -9 -9 -8 -8 -------- Run | Scr Mat Min Mat Min Mat Sto Damage Taken 5471 | . 627 226 1149 195 2583 691 Core 911 | . 142 45 149 17 364 194 Absorbed by Shields 128 | . . . . . . 128 Core Remaining (%) 61 | 100 . 25 . 58 . . Volleys Fired 367 | 3 55 16 122 14 109 48 Largest 2 | 2 2 2 2 2 2 2 Hottest 110 | 40 40 40 46 46 110 110 Shots Fired 696 | 6 109 32 212 28 214 95 Gun 688 | 6 109 32 206 28 213 94 Cannon . | . . . . . . . Launcher 8 | . . . 6 . 1 1 Special . | . . . . . . . Kinetic 581 | 6 109 32 206 28 110 90 Thermal 107 | . . . . . 103 4 Explosive 8 | . . . 6 . 1 1 Electromagnetic . | . . . . . . . Robot Hit Streak 39 | 2 9 3 20 23 39 15 Robot Miss Streak 3 | 1 3 3 3 1 2 2 Penetration Max . | . . . . . . . Secondary Targets 11 | . 1 . 2 2 2 4 Max Gunslinging Chain 1 | . 1 . 1 1 1 1 Shots Hit Robots 521 | 3 71 15 163 24 173 72 Core Hits 214 | 3 28 11 65 13 65 29 Critical Kills 3 | . 2 . . . 1 . Critical Parts Destroyed 2 | . . . . . 2 . Critical Strikes 8 | . 2 . . . 6 . Burn 3 | . . . . . 3 . Destroy 5 | . 2 . . . 3 . Melee Attacks 4 | . . . . . 2 2 Impact 4 | . . . . . 2 2 Slashing . | . . . . . . . Piercing . | . . . . . . . Sneak Attacks . | . . . . . . . Combat Hostiles . | . . . . . . . Follow-up Attacks . | . . . . . . . Damage Inflicted 8640 | 32 844 172 3064 360 2912 1256 Guns 7933 | 32 844 172 2382 360 2887 1256 Cannons . | . . . . . . . Explosions 707 | . . . 682 . 25 . Melee . | . . . . . . . Ramming . | . . . . . . . Kinetic 6389 | 32 844 172 2382 360 1343 1256 Thermal 1544 | . . . . . 1544 . Explosive 707 | . . . 682 . 25 . Electromagnetic . | . . . . . . . Impact . | . . . . . . . Slashing . | . . . . . . . Piercing . | . . . . . . . Highest Corruption . | . . . . . . . Average Corruption . | . . . . . . . Corruption Purged . | . . . . . . . Corruption Blocked . | . . . . . . . Overload Shots . | . . . . . . . Overflow Damage 29 | . . . 29 . . . Projectiles . | . . . . . . . Explosions 29 | . . . 29 . . . Melee . | . . . . . . . Knockbacks . | . . . . . . . Impact . | . . . . . . . Kinetic . | . . . . . . . Secondary . | . . . . . . . Self-Inflicted Damage 51 | . . . 51 . . . Shots 2 | . . . 2 . . . Rammed . | . . . . . . . Targets Rammed . | . . . . . . . Kicked . | . . . . . . . Crushed . | . . . . . . . Highest Temperature 116 | . 18 2 22 15 115 116 Average Temperature 26 | . 7 2 5 8 38 38 Received Heat Transfer 2083 | . 345 69 315 57 882 415 Siege Activations . | . . . . . . . Robots Corrupted . | . . . . . . . Combat Hostiles . | . . . . . . . Parts Fried . | . . . . . . . Impact Corruptions . | . . . . . . . Robots Melted . | . . . . . . . Combat Hostiles . | . . . . . . . Parts Melted 2 | . . . . . 2 . Heat Transferred 3256 | . . . . . 3256 . Parts Sabotaged . | . . . . . . . Parts Stolen . | . . . . . . . Parts Stripped . | . . . . . . . Power Chain Reactions . | . . . . . . . Missiles Intercepted . | . . . . . . . Alert | -11 -10 -10 -9 -9 -8 -8 ------- Run | Scr Mat Min Mat Min Mat Sto Peak Influence 621 | 10 169 165 621 216 367 453 Initial 216 | . 6 18 64 216 61 154 Average 178 | 3 58 65 276 147 185 264 Maximum Alert Level 2 | . . . 2 1 1 2 Low Security (%) 62 | 100 100 100 46 62 58 20 Level 1 28 | . . . 15 37 41 75 Level 2 9 | . . . 38 . . 3 Level 3 . | . . . . . . . Level 4 . | . . . . . . . Level 5 . | . . . . . . . High Security . | . . . . . . . Max Security . | . . . . . . . Squads Dispatched 16 | . 2 . 3 . 8 3 Investigation 3 | . . . 2 . . 1 Extermination . | . . . . . . . Reinforcement 10 | . 2 . 1 . 5 2 Assault . | . . . . . . . Garrison 3 | . . . . . 3 . Intercept . | . . . . . . . Searches Triggered . | . . . . . . . Construction Impeded . | . . . . . . . Haulers Reinforced . | . . . . . . . Active Scanning Responses . | . . . . . . . Cargo Convoy Interrupts . | . . . . . . . Stealth | -11 -10 -10 -9 -9 -8 -8 --------- Run | Scr Mat Min Mat Min Mat Sto Distress Signals 9 | . 1 . 3 . 1 4 Communications Jammed . | . . . . . . . Distress Signals . | . . . . . . . Times Spotted 167 | . 26 10 44 12 54 21 Peak Tracking Total 8 | . 4 3 8 3 7 6 Tactical Retreats 5 | . . 1 . . 4 . Traps | -11 -10 -10 -9 -9 -8 -8 ------- Run | Scr Mat Min Mat Min Mat Sto Traps Triggered 1 | . . . . . . 1 Indirectly . | . . . . . . . Trap Hack Attempts . | . . . . . . . Triggered . | . . . . . . . Disarmed . | . . . . . . . Reprogrammed . | . . . . . . . Reused . | . . . . . . . Traps Extracted . | . . . . . . . Installed . | . . . . . . . Triggered . | . . . . . . . Machines | -11 -10 -10 -9 -9 -8 -8 ---------- Run | Scr Mat Min Mat Min Mat Sto Machines Disabled 7 | . . . 3 . 1 3 Max in Single Turn 1 | . . . 1 . . 1 Machines Sabotaged . | . . . . . . . Garrisons Compromised . | . . . . . . . Overloaded Fab Kills . | . . . . . . . Hacking | -11 -10 -10 -9 -9 -8 -8 --------- Run | Scr Mat Min Mat Min Mat Sto Machines Accessed 11 | . 2 . 5 1 3 . Terminals 10 | . 2 . 5 . 3 . Fabricators . | . . . . . . . Repair Stations . | . . . . . . . Recycling Units . | . . . . . . . Scanalyzers . | . . . . . . . Garrison Access . | . . . . . . . Total Hacks 23 | . 2 . 14 1 6 . Successful 10 | . 1 . 4 1 4 . Failed 13 | . 1 . 10 . 2 . Catastrophic 2 | . . . 2 . . . Database Lockouts . | . . . . . . . Manual 15 | . 1 . 12 . 2 . Terminals 22 | . 2 . 14 . 6 . Fabricators . | . . . . . . . Repair Stations . | . . . . . . . Recycling Units . | . . . . . . . Scanalyzers . | . . . . . . . Garrison Access . | . . . . . . . Terminal Hacks 10 | . 1 . 4 1 4 . Prototype ID Bank 2 | . . . 1 . 1 . Open Door 1 | . . . . 1 . . Branch Access Points 2 | . . . 1 . 1 . Alert Level 1 | . . . 1 . . . Locate Traps 1 | . . . . . 1 . Hauler Manifests 3 | . 1 . 1 . 1 . Fabricator Hacks . | . . . . . . . Repair Station Hacks . | . . . . . . . Recycling Unit Hacks . | . . . . . . . Scanalyzer . | . . . . . . . Garrison Access Hacks . | . . . . . . . Unauthorized Hacks . | . . . . . . . Terminals . | . . . . . . . Fabricators . | . . . . . . . Repair Stations . | . . . . . . . Recycling Units . | . . . . . . . Scanalyzers . | . . . . . . . Garrison Access . | . . . . . . . Data Cores Recovered . | . . . . . . . Used . | . . . . . . . Hacking Detections 9 | . 1 . 5 . 3 . Full Trace Events 2 | . . . 2 . . . Feedback Events . | . . . . . . . Feedback Blocked . | . . . . . . . Robot Schematics Acquired . | . . . . . . . Robots Built . | . . . . . . . Authchips . | . . . . . . . Time . | . . . . . . . Total Robot Build Rating . | . . . . . . . Part Schematics Acquired . | . . . . . . . Parts Built . | . . . . . . . Authchips . | . . . . . . . Time . | . . . . . . . Total Part Build Rating . | . . . . . . . Parts Repaired . | . . . . . . . Time . | . . . . . . . Parts Recycled . | . . . . . . . Recycled Matter . | . . . . . . . Retrieved Matter . | . . . . . . . Retrieved Components . | . . . . . . . Parts Scanalyzed . | . . . . . . . Part Schematics Acquired . | . . . . . . . Parts Damaged . | . . . . . . . Bothacking | -11 -10 -10 -9 -9 -8 -8 ------------ Run | Scr Mat Min Mat Min Mat Sto Used RIF Installer . | . . . . . . . Robots Hacked . | . . . . . . . Non-combat . | . . . . . . . Combat . | . . . . . . . Robot Hacks Applied . | . . . . . . . Relay Couplers Released . | . . . . . . . Fabnet Peak Effective % . | . . . . . . . Robots Rewired . | . . . . . . . Allies Hacked . | . . . . . . . Hacks Repelled . | . . . . . . . Allies | -11 -10 -10 -9 -9 -8 -8 -------- Run | Scr Mat Min Mat Min Mat Sto Total Allies 4 | . . . . 4 . . Largest Group 4 | . . . . 4 4 . Highest-Rated Group 71 | . . . . 71 71 . Highest-Rated Ally 31 | . . . . 31 31 . Total Orders . | . . . . . . . Ally Attacks 62 | . . . . 6 56 . Total Damage 682 | . . . . 58 624 . Kills 11 | . . . . 2 9 . Allies Corrupted 1 | . . . . . 1 . Allies Melted . | . . . . . . . Intel | -11 -10 -10 -9 -9 -8 -8 ------- Run | Scr Mat Min Mat Min Mat Sto Robot Analysis Total . | . . . . . . . Derelict Logs Recovered 1 | . . . . 1 . . Drone Launches . | . . . . . . . Drone Recoveries . | . . . . . . . Exploration | -11 -10 -10 -9 -9 -8 -8 ------------- Run | Scr Mat Min Mat Min Mat Sto Turns Passed 7471 | 112 981 613 1752 1062 2299 652 Spaces Moved 3325 | 55 502 351 757 574 882 204 Core 1 | 1 . . . . . . Treads 2228 | 54 494 351 703 . 422 204 Legs . | . . . . . . . Wheels 1096 | . 8 . 54 574 460 . Hover . | . . . . . . . Flight . | . . . . . . . Fastest Speed 50 | 50 100 160 115 175 175 242 Average Speed 184 | 158 159 160 177 175 208 242 Slowest Speed 320 | 160 160 160 240 175 320 242 Overloaded Moves . | . . . . . . . Propulsion Burnouts . | . . . . . . . Robots Hopped . | . . . . . . . Cave-ins Triggered . | . . . . . . . Exploration Rate (%) 65 | 4 94 65 82 97 73 40 Regions Visited 6 Branch Regions 3 Pre-discovered Areas . | . . . . . . . Known Exits Taken 2 | . . . 1 . 1 . Unknown Exits Taken 4 | 1 1 1 . 1 . . Scrap Searched 5 | . . 1 . 4 . . Spaces Dug 28 | . . . . . 12 16 Terrain Destroyed 72 | . . . 44 . 12 16 Melee 2 | . . . . . 2 . Projectile . | . . . . . . . AOE 70 | . . . 44 . 10 16 Terrain Rammed . | . . . . . . . Walls Destroyed . | . . . . . . . Machines Disabled . | . . . . . . . Actions | -11 -10 -10 -9 -9 -8 -8 --------- Run | Scr Mat Min Mat Min Mat Sto Total 4024 | 73 586 371 960 603 1130 301 Wait 128 | 3 8 2 15 12 61 27 Move 3319 | 54 501 350 756 573 881 204 Hop . | . . . . . . . Pick Up 63 | 4 8 3 15 3 25 5 Fast Attach 23 | 6 3 . 5 . 7 2 Attach 30 | 1 2 . 8 . 17 2 Detach 11 | 1 3 . 2 . 5 . Swap 36 | . 2 . 17 1 11 5 Drop 43 | 1 4 . 20 . 12 6 Fire 367 | 3 55 16 122 14 109 48 Melee 4 | . . . . . 2 2 Ram . | . . . . . . . Kick . | . . . . . . . Crush . | . . . . . . . Escape Stasis . | . . . . . . . Rewire . | . . . . . . . Trap . | . . . . . . . Miscellaneous . | . . . . . . . Route ------- -11/Scrapyard -10/Materials (discovered 5 exits: *Mat x3 / [*Min x2]) -10/Mines -9/Materials (discovered 4 exits: *Mat x2 / *Min x2) -9/Mines (discovered 2 exits: *Mat x2) -8/Materials (discovered 4 exits: *Fac x3 / *Sto) -8/Storage History --------- Turn | Location | Event 11 | -11/Scrapyard | Discovered new exit (range 15) 113 | -11/Scrapyard | Entered Materials 251 | -10/Materials | Discovered new exit (range 11) 304 | -10/Materials | Build established: Mutant 426 | -10/Materials | Discovered new exit (range 9) 581 | -10/Materials | Discovered new exit (range 11) 675 | -10/Materials | Discovered new exit (range 16) 793 | -10/Materials | Core integrity fell below 50% 957 | -10/Materials | Discovered new exit (range 10) 1094 | -10/Materials | Entered Mines 1154 | -10/Mines | A weapon hastily lodged in a ceiling crevice suddenly fell to the ground 1460 | -10/Mines | Received a Rocket Launcher from a helpful Derelict 1639 | -10/Mines | Discovered new exit (range 8) 1707 | -10/Mines | Entered Materials 1707 | -9/Materials | Evolved 2 slots: Propulsion x1, Utility x1 1763 | -9/Materials | Discovered new exit (range 9) 2198 | -9/Materials | Discovered new exit (range 13) 2554 | -9/Materials | Build established: Scavenger-Mutant 2969 | -9/Materials | Lost 3 parts (1p1n1u) 2984 | -9/Materials | Discovered new exit (range 16) 3237 | -9/Materials | Build established: Mutant 3278 | -9/Materials | Discovered new exit (range 13) 3341 | -9/Materials | Identified exit to Mines 3459 | -9/Materials | Entered Mines 3482 | -9/Mines | Learned location of 1 exit from Materials 3504 | -9/Mines | Met a Derelict bent on vengeance 3517 | -9/Mines | Discovered new exit (range 10) 3685 | -9/Mines | Found a damaged Exp. Sensor Array with a note attached 3689 | -9/Mines | Found Prototype Device 3749 | -9/Mines | Discovered new exit (range 7) 3915 | -9/Mines | Found the Drone Emporium 3922 | -9/Mines | Found Prototype Device 4319 | -9/Mines | Assisted by bots powering up and referring to "LRC-V3" 4384 | -9/Mines | Escorted by a lone wolf Derelict 4521 | -9/Mines | Entered Materials 4521 | -8/Materials | Accompanied by 4 allies 4521 | -8/Materials | Evolved 2 slots: Propulsion x1, Utility x1 4522 | -8/Materials | Identified exit to Factory 4672 | -8/Materials | Identified exit to Storage 5077 | -8/Materials | Identified Exp. Sensor Array 5078 | -8/Materials | Identified Thief Drone Bay 5661 | -8/Materials | Discovered exit to Factory (range 10) 6094 | -8/Materials | Lost 3 parts (1p2n) 6469 | -8/Materials | Discovered exit to Factory (range 3) 6494 | -8/Materials | Core integrity fell below 50% 6512 | -8/Materials | Garrison activated, responded to threat 6555 | -8/Materials | Lost 7 parts (3n2u2w) 6820 | -8/Materials | Build established: Scavenger-Mutant 6820 | -8/Materials | Entered Storage 7077 | -8/Storage | Core integrity fell below 20% 7472 | -8/Storage | Destroyed by G-47 Trooper with Particle Gun Last Messages --------------- 07389_ K-01 Serf collects debris. 07402_ G-47 Trooper destroyed. 07404_ Acquired 48 matter. 07416_ Triggered Alarm Trap. 07416_ An alarm sounds. 07416_ ALERT: Alarm triggered, dispatching investigation squad. 07420_ U-05 Engineer lays Concrete. 07454_ O-16 Technician: "IFF HANDSHAKE FAILED. SECURING TERMINAL." 07455_ ALERT: Hostiles spotted, dispatching reinforcements to Terminal S011. 07456_ K-01 Serf cleans the Terminal. 07465_ G-47 Trooper destroyed. 07465_ Switching to secondary target: G-47 Trooper. 07466_ R-06 Scavenger collects Aluminum Leg. 07467_ K-01 Serf collects debris. 07468_ Lgt. Treads destroyed. 07469_ Critical hit (Burn: +25). 07471_ K-01 Serf cleans the Terminal. 07471_ Critical hit (Burn: +26). 07471_ Terminal disabled. Map ----- +----------------------------------------------------+ | ?????????????????????#########????######### | | ?????????????????????# #????# # | | ?????????????????????# #????# """"" # | | ?????????????????????# ###### """"" # | | ?????????????????????# + + """"" # | | #################????# # # # | | # ! ###########+## ##+#####? | | # + !*[ #????? | | # % #####%################????? | | #### # * #???#=#???????????????????? | | # # #???# #???????????????????? | | # # ] #???# #??????##???????????? | | # # ]##### ####### #######?????? | | # =# + + #?????? | | + # [ # # """#?????? | | # #####+##+# # """#?????? | | # # """#?????? | | + % %$ + #?????? | | # % # """#?????? | | # #####+##+########## # """#?????? | | # ## = % =* # ]! = # # """#?????? | | + ## == # ] ]+ + #?????? | | ######### % # * # ##########?????? | | ????????# """" ####????#r#??????????????? | | ????????# """" ""?????## ##?????????????? | | ???????# """" R"#???#@ #?????????????? | | ???????## """" """#???#g kg o ????????? | | ????????# ####???#k a #????? | | ????????# !? #??????### #????? | | ????????##"Y?????#????????? #????? | | ?????????#""??????????????? #????? | | ?????????##???????????????? !!! #????? | | ??????????????????????????? !!! T????? | | ??????????????????????????? !!! #????? | | ??????????????????????????? #????? | | ??????????????????????????? #????? | | ????????????????????????????######## ?????? | | ??????????????????????????????????????????? | | ??????????????????????????????????????????? | | ??????????????????????????????????????????? | | ??????????????????????????????????????????? | | ??????????????????????????????????????????? | | ??????????????????????????????????????????? | | ??????????????????????????????????????????? | | ??????????????????????????????????????????? | | ??????????????????????????????????????????? | | ??????????????????????????????????????????? | | ??????????????????????????????????????????? | | ??????????????????????????????????????????? | | ??????????????????????????????????????????? | +----------------------------------------------------+ Best States ------------- Heat Dissipation 58 Energy Generation 16 Energy Capacity 290 Matter Stores 300 Matter Capacity 300 Sight Range 16 Terrain Scan Density 10 Armor Coverage 225 Evasion (%) 40 Targeting Accuracy 8 Recoil Reduction 4 Item Schematics ----------------- None Robot Schematics ------------------ None Fabricated ------------ Nothing Alien Tech Used ----------------- None Achievements -------------- None Challenges ------------ None Game ------ Seed HypercooledModifiedCore Manual? 0 Play Time 00:41:28 Cumulative 311.7 hours Start 2022.04.08 @ 00:36:08 End 2022.04.08 @ 01:17:42 Sessions 1 Manual Loads 0 Difficulty Rogue Special Mode None Game No. 465 Rogue 465 Adventurer 0 Explorer 0 Win Type - Total 5 Types 3/0/1/1/0/0/0/0/0 Lore% 79 Gallery% 81 Achievement% 64 Wizard Run 0 Options --------- ASCII 0 Keyboard 1 Movement Numpad Keybinds 0 Fullscreen 2 Font 24/Smallcaps Map View 76x50 Tactical HUD 1 Map Filters NONE Filters NONE Steam 1 RUN: acbd00d7-239a-4bca-b6f7-f17fd2c12187